[Event "Early-Titled-Tuesday-Blitz-January-30-2024"]
[Site "Chess.com"]
[Date "2024.01.30"]
[Round "2"]
[White "viktorskliarov"]
[Black "LyonBeast"]
[Result "0-1"]
[WhiteElo "2676"]
[BlackElo "3159"]
[TimeControl "180+1"]
[EndTime "8:18:50 PST"]
[Termination "LyonBeast won on time"]

1. e4 {[%clk 0:03:00.9]} 1... c5 {[%clk 0:02:59.7]} 2. Nf3 {[%clk 0:03:01.2]}
2... Nc6 {[%clk 0:03:00.1]} 3. Bb5 {[%clk 0:03:00.4]} 3... e6 {[%clk 0:02:59.9]}
4. Bxc6 {[%clk 0:03:00.6]} 4... bxc6 {[%clk 0:03:00.8]} 5. d3 {[%clk 0:03:01.2]}
5... Ne7 {[%clk 0:03:00.8]} 6. O-O {[%clk 0:03:01.2]} 6... f6 {[%clk 0:02:55.3]}
7. Re1 {[%clk 0:02:53.7]} 7... e5 {[%clk 0:02:54.7]} 8. c3 {[%clk 0:02:50]} 8...
Ng6 {[%clk 0:02:50.4]} 9. d4 {[%clk 0:02:47.7]} 9... cxd4 {[%clk 0:02:36.1]} 10.
cxd4 {[%clk 0:02:47.7]} 10... Be7 {[%clk 0:02:33]} 11. d5 {[%clk 0:02:29]} 11...
cxd5 {[%clk 0:02:31.2]} 12. Qxd5 {[%clk 0:02:24.8]} 12... Rb8 {[%clk 0:02:31.3]}
13. Nc3 {[%clk 0:02:01.1]} 13... Bb7 {[%clk 0:02:28.6]} 14. Qc4 {[%clk 0:01:59]}
14... Qa5 {[%clk 0:02:01.2]} 15. Be3 {[%clk 0:01:33.5]} 15... Bc6 {[%clk
0:01:59.8]} 16. b3 {[%clk 0:01:13.4]} 16... Rb4 {[%clk 0:01:58]} 17. Qd3 {[%clk
0:01:10.3]} 17... O-O {[%clk 0:01:57.1]} 18. a3 {[%clk 0:00:49.2]} 18... Rbb8
{[%clk 0:01:42.5]} 19. b4 {[%clk 0:00:49.2]} 19... Qc7 {[%clk 0:01:41.1]} 20.
Rac1 {[%clk 0:00:43.6]} 20... Qb7 {[%clk 0:01:38.7]} 21. Red1 {[%clk 0:00:32.9]}
21... Rfc8 {[%clk 0:01:28.3]} 22. h4 {[%clk 0:00:26.9]} 22... h5 {[%clk
0:01:25.6]} 23. Nd5 {[%clk 0:00:15.8]} 23... Ba4 {[%clk 0:01:17.6]} 24. Re1
{[%clk 0:00:11.2]} 24... Bf8 {[%clk 0:01:12.7]} 25. g3 {[%clk 0:00:09]} 25...
Ne7 {[%clk 0:01:10.7]} 26. Nxe7+ {[%clk 0:00:08.7]} 26... Bxe7 {[%clk
0:01:11.6]} 27. Kg2 {[%clk 0:00:08.9]} 27... Bc6 {[%clk 0:01:07.8]} 28. Bc5
{[%clk 0:00:08.6]} 28... Re8 {[%clk 0:00:47.3]} 29. Bxe7 {[%clk 0:00:08.5]}
29... Rxe7 {[%clk 0:00:48.2]} 30. Qd6 {[%clk 0:00:08.3]} 30... Re6 {[%clk
0:00:47]} 31. Qd3 {[%clk 0:00:07.6]} 31... d5 {[%clk 0:00:43.9]} 32. Rxc6 {[%clk
0:00:06.5]} 32... Rxc6 {[%clk 0:00:44.8]} 33. Qxd5+ {[%clk 0:00:05.2]} 33... Kh8
{[%clk 0:00:44.6]} 34. Rd1 {[%clk 0:00:05.5]} 34... Rc3 {[%clk 0:00:42.1]} 35.
Qxb7 {[%clk 0:00:04.1]} 35... Rxb7 {[%clk 0:00:43]} 36. Rd8+ {[%clk 0:00:03.6]}
36... Kh7 {[%clk 0:00:43.3]} 37. Ra8 {[%clk 0:00:02.6]} 37... Rxa3 {[%clk
0:00:43.2]} 38. Ne1 {[%clk 0:00:02.5]} 38... Rc3 {[%clk 0:00:40.8]} 39. f3
{[%clk 0:00:01.8]} 39... Rxb4 {[%clk 0:00:40.4]} 40. Rxa7 {[%clk 0:00:01.6]}
40... Rb2+ {[%clk 0:00:41]} 41. Kf1 {[%clk 0:00:02]} 41... Rc1 {[%clk
0:00:40.5]} 0-1

[Event "Early-Titled-Tuesday-Blitz-January-30-2024"]
[Site "Chess.com"]
[Date "2024.01.30"]
[Round "2"]
[White "vladislavkovalev"]
[Black "Let_it_be_1"]
[Result "1-0"]
[WhiteElo "2859"]
[BlackElo "2572"]
[TimeControl "180+1"]
[EndTime "8:18:56 PST"]
[Termination "vladislavkovalev won by checkmate"]

1. e4 {[%clk 0:03:00.9]} 1... e6 {[%clk 0:03:00]} 2. d4 {[%clk 0:03:00.8]} 2...
d5 {[%clk 0:03:00.4]} 3. Nd2 {[%clk 0:03:01.5]} 3... Nf6 {[%clk 0:03:00.3]} 4.
e5 {[%clk 0:03:01.7]} 4... Nfd7 {[%clk 0:03:00]} 5. Bd3 {[%clk 0:03:02.3]} 5...
c5 {[%clk 0:03:00.4]} 6. c3 {[%clk 0:03:03.1]} 6... Nc6 {[%clk 0:03:00.7]} 7.
Ne2 {[%clk 0:03:03.4]} 7... f6 {[%clk 0:03:01.3]} 8. exf6 {[%clk 0:03:03.4]}
8... Nxf6 {[%clk 0:03:01.1]} 9. Nf3 {[%clk 0:03:04.1]} 9... Bd6 {[%clk
0:03:01.1]} 10. O-O {[%clk 0:03:04.4]} 10... Qc7 {[%clk 0:03:01.3]} 11. dxc5
{[%clk 0:02:53.7]} 11... Bxc5 {[%clk 0:03:01.1]} 12. b4 {[%clk 0:02:54.5]} 12...
Bd6 {[%clk 0:02:56.9]} 13. b5 {[%clk 0:02:55.1]} 13... Na5 {[%clk 0:02:43.3]}
14. Qa4 {[%clk 0:02:37.5]} 14... O-O {[%clk 0:02:37.8]} 15. Bf4 {[%clk
0:02:34.7]} 15... Nc4 {[%clk 0:02:02.5]} 16. Bxd6 {[%clk 0:02:18.6]} 16... Nxd6
{[%clk 0:02:02.4]} 17. Ne5 {[%clk 0:02:10]} 17... Nde4 {[%clk 0:01:58.5]} 18. f4
{[%clk 0:02:09.2]} 18... Qb6+ {[%clk 0:01:35.8]} 19. Qd4 {[%clk 0:01:50.4]}
19... Nxc3 {[%clk 0:01:35.8]} 20. Qxb6 {[%clk 0:01:50.7]} 20... Nxe2+ {[%clk
0:01:35.2]} 21. Bxe2 {[%clk 0:01:51.6]} 21... axb6 {[%clk 0:01:35.6]} 22. Rfc1
{[%clk 0:01:52.3]} 22... Ne4 {[%clk 0:01:30.2]} 23. g3 {[%clk 0:01:51.9]} 23...
Nc5 {[%clk 0:01:25.9]} 24. a4 {[%clk 0:01:33.2]} 24... Nb3 {[%clk 0:01:13.7]}
25. Bg4 {[%clk 0:01:23.4]} 25... Kh8 {[%clk 0:00:48.6]} 26. Bd1 {[%clk
0:01:11.5]} 26... Nxc1 {[%clk 0:00:45]} 27. Rxc1 {[%clk 0:01:11.4]} 27... g5
{[%clk 0:00:35.9]} 28. fxg5 {[%clk 0:00:44.3]} 28... Rf5 {[%clk 0:00:35.6]} 29.
Nf3 {[%clk 0:00:33.3]} 29... e5 {[%clk 0:00:34.1]} 30. g4 {[%clk 0:00:34]} 30...
Rf4 {[%clk 0:00:27.6]} 31. Nxe5 {[%clk 0:00:33.2]} 31... Be6 {[%clk 0:00:27.3]}
32. Rc7 {[%clk 0:00:28.3]} 32... Re8 {[%clk 0:00:17.4]} 33. Bc2 {[%clk
0:00:26.1]} 33... Bg8 {[%clk 0:00:16.7]} 34. g6 {[%clk 0:00:21.8]} 34... Be6
{[%clk 0:00:06.7]} 35. gxh7 {[%clk 0:00:19.3]} 35... Rd4 {[%clk 0:00:02.8]} 36.
Ng6# {[%clk 0:00:19.5]} 1-0

[Event "Early-Titled-Tuesday-Blitz-January-30-2024"]
[Site "Chess.com"]
[Date "2024.01.30"]
[Round "2"]
[White "BJthechessgod"]
[Black "IMRosen"]
[Result "1-0"]
[WhiteElo "2419"]
[BlackElo "2717"]
[TimeControl "180+1"]
[EndTime "8:18:59 PST"]
[Termination "BJthechessgod won on time"]

1. e4 {[%clk 0:02:52.9]} 1... e5 {[%clk 0:02:58.6]} 2. Nf3 {[%clk 0:02:53]} 2...
Nf6 {[%clk 0:02:59]} 3. Nxe5 {[%clk 0:02:52.1]} 3... Nc6 {[%clk 0:02:59.4]} 4.
Nxc6 {[%clk 0:02:49.2]} 4... dxc6 {[%clk 0:03:00.3]} 5. Nc3 {[%clk 0:02:46.2]}
5... Bc5 {[%clk 0:03:00.3]} 6. Be2 {[%clk 0:02:40.5]} 6... Qd4 {[%clk
0:02:52.2]} 7. O-O {[%clk 0:02:37.5]} 7... h5 {[%clk 0:02:52.7]} 8. d3 {[%clk
0:02:35.8]} 8... Ng4 {[%clk 0:02:53]} 9. Bxg4 {[%clk 0:02:14.8]} 9... hxg4
{[%clk 0:02:53.1]} 10. Ne2 {[%clk 0:02:07.7]} 10... Qf6 {[%clk 0:02:46.4]} 11.
d4 {[%clk 0:02:02.7]} 11... Bd6 {[%clk 0:02:18]} 12. e5 {[%clk 0:01:57.6]} 12...
Qh4 {[%clk 0:02:18.1]} 13. Bf4 {[%clk 0:01:56.8]} 13... Be7 {[%clk 0:02:18.1]}
14. Bg3 {[%clk 0:01:53.4]} 14... Qh7 {[%clk 0:02:17.8]} 15. Qd2 {[%clk
0:01:14.3]} 15... Bf5 {[%clk 0:02:06.6]} 16. Rac1 {[%clk 0:01:05.4]} 16... O-O-O
{[%clk 0:02:03.7]} 17. c4 {[%clk 0:01:00.9]} 17... Qg6 {[%clk 0:01:48.9]} 18. d5
{[%clk 0:00:47]} 18... Rh6 {[%clk 0:01:25.1]} 19. d6 {[%clk 0:00:40.2]} 19...
Bg5 {[%clk 0:01:20.5]} 20. Nf4 {[%clk 0:00:32.9]} 20... Qh7 {[%clk 0:01:15.7]}
21. Qa5 {[%clk 0:00:26.2]} 21... cxd6 {[%clk 0:01:04.9]} 22. exd6 {[%clk
0:00:26.6]} 22... Rdxd6 {[%clk 0:00:43.1]} 23. Rcd1 {[%clk 0:00:11]} 23... Rxh2
{[%clk 0:00:32.3]} 24. Bxh2 {[%clk 0:00:07.9]} 24... Rh6 {[%clk 0:00:32.5]} 25.
Nd5 {[%clk 0:00:04.8]} 25... b6 {[%clk 0:00:03]} 26. Nxb6+ {[%clk 0:00:02.2]}
1-0

[Event "Early-Titled-Tuesday-Blitz-January-30-2024"]
[Site "Chess.com"]
[Date "2024.01.30"]
[Round "2"]
[White "IlanSchnaider"]
[Black "VitaliyChayka"]
[Result "0-1"]
[WhiteElo "2652"]
[BlackElo "2405"]
[TimeControl "180+1"]
[EndTime "8:18:59 PST"]
[Termination "VitaliyChayka won on time"]

1. e4 {[%clk 0:03:00.9]} 1... d6 {[%clk 0:03:00.3]} 2. d4 {[%clk 0:03:00.9]}
2... Nf6 {[%clk 0:03:01.1]} 3. Nc3 {[%clk 0:03:01.5]} 3... e5 {[%clk 0:03:01.8]}
4. Nf3 {[%clk 0:02:59.7]} 4... Nbd7 {[%clk 0:03:01.9]} 5. Bc4 {[%clk 0:02:59]}
5... Be7 {[%clk 0:03:02.4]} 6. O-O {[%clk 0:02:57.6]} 6... O-O {[%clk
0:03:02.6]} 7. a4 {[%clk 0:02:57.3]} 7... a5 {[%clk 0:03:03]} 8. h3 {[%clk
0:02:56.2]} 8... c6 {[%clk 0:03:03.6]} 9. Re1 {[%clk 0:02:54.4]} 9... exd4
{[%clk 0:03:04.1]} 10. Nxd4 {[%clk 0:02:53.5]} 10... Nc5 {[%clk 0:03:05]} 11.
Bf4 {[%clk 0:02:50.1]} 11... Be6 {[%clk 0:03:04]} 12. Nxe6 {[%clk 0:02:42.8]}
12... fxe6 {[%clk 0:03:04.9]} 13. e5 {[%clk 0:02:43.2]} 13... Nd5 {[%clk
0:02:57.1]} 14. Bg3 {[%clk 0:02:13.4]} 14... Nxc3 {[%clk 0:02:49.9]} 15. bxc3
{[%clk 0:02:14.3]} 15... d5 {[%clk 0:02:50.5]} 16. Bd3 {[%clk 0:02:14.5]} 16...
Nxd3 {[%clk 0:02:49.9]} 17. cxd3 {[%clk 0:02:15.1]} 17... b5 {[%clk 0:02:45.6]}
18. Qg4 {[%clk 0:02:07.1]} 18... Qd7 {[%clk 0:02:43]} 19. h4 {[%clk 0:01:44.4]}
19... b4 {[%clk 0:02:32.3]} 20. c4 {[%clk 0:01:41.5]} 20... Rab8 {[%clk
0:02:24.9]} 21. h5 {[%clk 0:01:36.1]} 21... h6 {[%clk 0:02:25]} 22. Bf4 {[%clk
0:01:27.7]} 22... Kh8 {[%clk 0:02:21.4]} 23. Be3 {[%clk 0:01:23.8]} 23... Rf5
{[%clk 0:02:15]} 24. Qg6 {[%clk 0:01:17.9]} 24... d4 {[%clk 0:01:49.2]} 25. Bxh6
{[%clk 0:00:48.3]} 25... gxh6 {[%clk 0:01:50.1]} 26. Qxh6+ {[%clk 0:00:49.1]}
26... Kg8 {[%clk 0:01:50.3]} 27. Re4 {[%clk 0:00:49.7]} 27... Rg5 {[%clk
0:01:28.5]} 28. Rf1 {[%clk 0:00:19]} 28... Rf8 {[%clk 0:01:25.9]} 29. f4 {[%clk
0:00:18.1]} 29... Rg7 {[%clk 0:01:26.6]} 30. f5 {[%clk 0:00:13.8]} 30... Rxf5
{[%clk 0:01:26.5]} 31. Rxf5 {[%clk 0:00:12.4]} 31... exf5 {[%clk 0:01:27.4]} 32.
Re2 {[%clk 0:00:05.7]} 32... Bg5 {[%clk 0:01:18.9]} 33. Qd6 {[%clk 0:00:05.8]}
33... Qxd6 {[%clk 0:01:19.4]} 34. exd6 {[%clk 0:00:06.7]} 34... Be3+ {[%clk
0:01:19.8]} 35. Kf1 {[%clk 0:00:04.1]} 35... Rd7 {[%clk 0:01:18.4]} 36. c5
{[%clk 0:00:04.4]} 36... f4 {[%clk 0:01:14.1]} 37. Rc2 {[%clk 0:00:02.4]} 37...
Rb7 {[%clk 0:01:13.2]} 38. Ke2 {[%clk 0:00:02.2]} 38... b3 {[%clk 0:01:12.1]}
39. Rb2 {[%clk 0:00:02.5]} 39... Bc1 {[%clk 0:01:11.3]} 40. d7 {[%clk
0:00:02.7]} 40... Rxd7 {[%clk 0:01:09.5]} 41. Rxb3 {[%clk 0:00:03.2]} 41... Re7+
{[%clk 0:01:04.3]} 42. Kf3 {[%clk 0:00:03.3]} 42... Re3+ {[%clk 0:01:02.9]} 43.
Kg4 {[%clk 0:00:03.5]} 43... Rg3+ {[%clk 0:00:59.6]} 44. Kf5 {[%clk 0:00:04.1]}
44... Rxg2 {[%clk 0:01:00.5]} 45. Rb8+ {[%clk 0:00:03.8]} 45... Kh7 {[%clk
0:00:59.3]} 46. Rb7+ {[%clk 0:00:03.3]} 46... Rg7 {[%clk 0:00:58.9]} 47. Rb1
{[%clk 0:00:02.1]} 47... Be3 {[%clk 0:00:51.1]} 48. h6 {[%clk 0:00:01.1]} 48...
Rg6 {[%clk 0:00:46.3]} 0-1

[Event "Early-Titled-Tuesday-Blitz-January-30-2024"]
[Site "Chess.com"]
[Date "2024.01.30"]
[Round "2"]
[White "EdmundPlayer"]
[Black "oganromchess"]
[Result "1-0"]
[WhiteElo "2274"]
[BlackElo "2511"]
[TimeControl "180+1"]
[EndTime "8:19:00 PST"]
[Termination "EdmundPlayer won on time"]

1. Nc3 {[%clk 0:03:00.9]} 1... e6 {[%clk 0:02:58.7]} 2. e4 {[%clk 0:02:59.4]}
2... d5 {[%clk 0:02:57.7]} 3. d4 {[%clk 0:02:59.6]} 3... Nf6 {[%clk 0:02:57]} 4.
Bg5 {[%clk 0:02:57.1]} 4... Bb4 {[%clk 0:02:55.8]} 5. exd5 {[%clk 0:02:47.7]}
5... Qxd5 {[%clk 0:02:52.4]} 6. Nf3 {[%clk 0:02:45.2]} 6... Ne4 {[%clk
0:02:44.9]} 7. Bd2 {[%clk 0:02:43.5]} 7... Bxc3 {[%clk 0:02:34.7]} 8. bxc3
{[%clk 0:02:40.7]} 8... b5 {[%clk 0:02:21.9]} 9. Bd3 {[%clk 0:02:28.6]} 9... Bb7
{[%clk 0:02:07.5]} 10. Qe2 {[%clk 0:02:26.7]} 10... Nxd2 {[%clk 0:02:03.1]} 11.
Nxd2 {[%clk 0:01:56.8]} 11... Qxg2 {[%clk 0:01:50.5]} 12. O-O-O {[%clk
0:01:56.5]} 12... a6 {[%clk 0:01:15.4]} 13. Rhg1 {[%clk 0:01:42.3]} 13... Qd5
{[%clk 0:01:12.9]} 14. Be4 {[%clk 0:01:33.2]} 14... Qxa2 {[%clk 0:01:02.6]} 15.
Bxb7 {[%clk 0:01:33.1]} 15... Qa3+ {[%clk 0:00:50.6]} 16. Kb1 {[%clk 0:01:31.7]}
16... Ra7 {[%clk 0:00:48.1]} 17. Be4 {[%clk 0:01:16.4]} 17... Qxc3 {[%clk
0:00:31.1]} 18. Nb3 {[%clk 0:00:52]} 18... g6 {[%clk 0:00:21.7]} 19. d5 {[%clk
0:00:48.4]} 19... e5 {[%clk 0:00:19.3]} 20. f4 {[%clk 0:00:47]} 20... Nd7 {[%clk
0:00:18.1]} 21. Qf2 {[%clk 0:00:35.9]} 21... Nb6 {[%clk 0:00:16.9]} 22. Rg3
{[%clk 0:00:30.9]} 22... Qb4 {[%clk 0:00:16.8]} 23. Re1 {[%clk 0:00:13.8]} 23...
Nc4 {[%clk 0:00:10.7]} 24. Bd3 {[%clk 0:00:04.5]} 24... O-O {[%clk 0:00:05.6]}
25. Reg1 {[%clk 0:00:03.2]} 25... exf4 {[%clk 0:00:03.5]} 26. Rg4 {[%clk
0:00:02.5]} 26... Na3+ {[%clk 0:00:02]} 27. Kb2 {[%clk 0:00:02.5]} 1-0

[Event "Early-Titled-Tuesday-Blitz-January-30-2024"]
[Site "Chess.com"]
[Date "2024.01.30"]
[Round "2"]
[White "wannabe2700"]
[Black "Zhigalko_Sergei"]
[Result "0-1"]
[WhiteElo "2613"]
[BlackElo "2966"]
[TimeControl "180+1"]
[EndTime "8:19:01 PST"]
[Termination "Zhigalko_Sergei won on time"]

1. b3 {[%clk 0:03:00.9]} 1... e5 {[%clk 0:02:58]} 2. Bb2 {[%clk 0:03:01.8]} 2...
e4 {[%clk 0:02:56.8]} 3. c4 {[%clk 0:03:00.8]} 3... Nf6 {[%clk 0:02:56.1]} 4.
Nc3 {[%clk 0:03:00.6]} 4... Nc6 {[%clk 0:02:54.8]} 5. g3 {[%clk 0:02:53.5]} 5...
Bb4 {[%clk 0:02:30.2]} 6. Nd5 {[%clk 0:02:45.2]} 6... Be7 {[%clk 0:02:19.7]} 7.
Bg2 {[%clk 0:02:43.9]} 7... O-O {[%clk 0:02:19.8]} 8. Nh3 {[%clk 0:01:20.3]}
8... d6 {[%clk 0:02:05.9]} 9. Nhf4 {[%clk 0:01:20]} 9... Bf5 {[%clk 0:02:01.1]}
10. O-O {[%clk 0:01:07.9]} 10... Re8 {[%clk 0:01:51.9]} 11. b4 {[%clk
0:00:33.2]} 11... Nxd5 {[%clk 0:01:30.3]} 12. Nxd5 {[%clk 0:00:34.1]} 12... Bf8
{[%clk 0:01:30.1]} 13. Qb3 {[%clk 0:00:33.9]} 13... Ne5 {[%clk 0:01:14.3]} 14.
f4 {[%clk 0:00:18.9]} 14... exf3 {[%clk 0:01:12.7]} 15. exf3 {[%clk 0:00:13.2]}
15... Nd3 {[%clk 0:00:37.5]} 16. Bc3 {[%clk 0:00:11.5]} 16... h6 {[%clk
0:00:20.2]} 17. Ne3 {[%clk 0:00:08.8]} 17... Bh7 {[%clk 0:00:20.4]} 18. f4
{[%clk 0:00:07.4]} 18... c6 {[%clk 0:00:20.8]} 19. f5 {[%clk 0:00:07.5]} 19...
Qg5 {[%clk 0:00:20.8]} 20. Kh1 {[%clk 0:00:06.9]} 20... Rad8 {[%clk 0:00:13.4]}
21. Bxg7 {[%clk 0:00:05.3]} 21... Bxg7 {[%clk 0:00:12]} 22. Qxd3 {[%clk
0:00:05.3]} 22... Bxa1 {[%clk 0:00:12.2]} 23. Rxa1 {[%clk 0:00:06.1]} 23... d5
{[%clk 0:00:12]} 24. cxd5 {[%clk 0:00:06.2]} 24... cxd5 {[%clk 0:00:12.9]} 25.
Rf1 {[%clk 0:00:05.4]} 25... d4 {[%clk 0:00:12.4]} 26. Nd5 {[%clk 0:00:05.7]}
26... Qg7 {[%clk 0:00:11.3]} 27. Qf3 {[%clk 0:00:04.5]} 27... Qe5 {[%clk
0:00:10.2]} 28. Qg4+ {[%clk 0:00:03.3]} 28... Kh8 {[%clk 0:00:09.7]} 29. f6
{[%clk 0:00:02.7]} 29... Rg8 {[%clk 0:00:09.8]} 30. Qf3 {[%clk 0:00:03]} 30...
Rd6 {[%clk 0:00:08.9]} 31. Ne7 {[%clk 0:00:02.7]} 31... Rf8 {[%clk 0:00:08.2]}
32. d3 {[%clk 0:00:02.8]} 32... Re6 {[%clk 0:00:08]} 0-1

[Event "Early-Titled-Tuesday-Blitz-January-30-2024"]
[Site "Chess.com"]
[Date "2024.01.30"]
[Round "2"]
[White "FM_VS99"]
[Black "Heinza9"]
[Result "1-0"]
[WhiteElo "2550"]
[BlackElo "2324"]
[TimeControl "180+1"]
[EndTime "8:19:01 PST"]
[Termination "FM_VS99 won on time"]

1. d4 {[%clk 0:03:00.9]} 1... f5 {[%clk 0:02:59.6]} 2. Bg5 {[%clk 0:02:59.7]}
2... h6 {[%clk 0:02:59.2]} 3. Bh4 {[%clk 0:02:59.3]} 3... g5 {[%clk 0:02:59.2]}
4. e3 {[%clk 0:02:59]} 4... Nf6 {[%clk 0:02:59.2]} 5. Bg3 {[%clk 0:02:58.7]}
5... Bg7 {[%clk 0:02:59.2]} 6. Nc3 {[%clk 0:02:59.3]} 6... d6 {[%clk 0:02:59]}
7. h4 {[%clk 0:02:54.2]} 7... g4 {[%clk 0:02:58.6]} 8. Bc4 {[%clk 0:02:53.8]}
8... Nh5 {[%clk 0:02:50.8]} 9. Nge2 {[%clk 0:02:51.5]} 9... e6 {[%clk
0:02:31.8]} 10. Nf4 {[%clk 0:02:24.9]} 10... Nxf4 {[%clk 0:02:29.5]} 11. exf4
{[%clk 0:02:17.8]} 11... d5 {[%clk 0:02:24.7]} 12. Bb5+ {[%clk 0:02:12.6]} 12...
c6 {[%clk 0:02:24.3]} 13. Ba4 {[%clk 0:02:02.6]} 13... Qb6 {[%clk 0:02:24.2]}
14. Bb3 {[%clk 0:02:02.8]} 14... Qxd4 {[%clk 0:02:22.8]} 15. Qe2 {[%clk
0:02:02.9]} 15... O-O {[%clk 0:02:17.8]} 16. O-O {[%clk 0:01:54.6]} 16... h5
{[%clk 0:02:10.6]} 17. Rad1 {[%clk 0:01:50.4]} 17... Qf6 {[%clk 0:02:07.2]} 18.
f3 {[%clk 0:01:49.5]} 18... Na6 {[%clk 0:02:04.8]} 19. Bf2 {[%clk 0:01:39.5]}
19... c5 {[%clk 0:01:48.5]} 20. Rfe1 {[%clk 0:01:27.1]} 20... c4 {[%clk
0:01:31.3]} 21. Ba4 {[%clk 0:01:25]} 21... Qf7 {[%clk 0:01:26.5]} 22. Bb5 {[%clk
0:01:19.6]} 22... Nc7 {[%clk 0:01:24.9]} 23. Bxc4 {[%clk 0:00:55.9]} 23... dxc4
{[%clk 0:01:23.6]} 24. Qxc4 {[%clk 0:00:56.8]} 24... Nd5 {[%clk 0:01:18]} 25.
Nb5 {[%clk 0:00:44.3]} 25... Qd7 {[%clk 0:00:49]} 26. fxg4 {[%clk 0:00:41.4]}
26... hxg4 {[%clk 0:00:47.2]} 27. g3 {[%clk 0:00:36.3]} 27... a6 {[%clk
0:00:45.5]} 28. Nd4 {[%clk 0:00:32.3]} 28... b5 {[%clk 0:00:41.5]} 29. Qe2
{[%clk 0:00:30.7]} 29... Bxd4 {[%clk 0:00:14.6]} 30. Bxd4 {[%clk 0:00:30.1]}
30... Rf7 {[%clk 0:00:11.6]} 31. Qe5 {[%clk 0:00:27.4]} 31... Rh7 {[%clk
0:00:03.9]} 32. b3 {[%clk 0:00:18.8]} 32... a5 {[%clk 0:00:03.2]} 33. c4 {[%clk
0:00:19]} 33... bxc4 {[%clk 0:00:02.8]} 34. bxc4 {[%clk 0:00:19.9]} 1-0

[Event "Early-Titled-Tuesday-Blitz-January-30-2024"]
[Site "Chess.com"]
[Date "2024.01.30"]
[Round "2"]
[White "Kiborg95"]
[Black "RandomNoob04"]
[Result "1-0"]
[WhiteElo "2841"]
[BlackElo "2564"]
[TimeControl "180+1"]
[EndTime "8:19:02 PST"]
[Termination "Kiborg95 won by resignation"]

1. e4 {[%clk 0:03:00.9]} 1... e5 {[%clk 0:02:59]} 2. Nf3 {[%clk 0:03:00.3]} 2...
Nf6 {[%clk 0:02:59.3]} 3. d3 {[%clk 0:02:56.2]} 3... Nc6 {[%clk 0:02:58.5]} 4.
c3 {[%clk 0:02:56.4]} 4... d5 {[%clk 0:02:57.8]} 5. Nbd2 {[%clk 0:02:56.2]} 5...
g6 {[%clk 0:02:55.7]} 6. b3 {[%clk 0:02:51]} 6... Bg7 {[%clk 0:02:55.5]} 7. Ba3
{[%clk 0:02:51.3]} 7... d4 {[%clk 0:02:48.7]} 8. cxd4 {[%clk 0:02:47]} 8... exd4
{[%clk 0:02:47.6]} 9. Be2 {[%clk 0:02:47.3]} 9... Ne7 {[%clk 0:02:45.2]} 10. Rc1
{[%clk 0:02:01.6]} 10... O-O {[%clk 0:02:14]} 11. O-O {[%clk 0:02:00.9]} 11...
Nd7 {[%clk 0:02:06.3]} 12. Qc2 {[%clk 0:01:57.8]} 12... b6 {[%clk 0:02:05.2]}
13. Qxc7 {[%clk 0:01:57.1]} 13... Qxc7 {[%clk 0:01:51]} 14. Rxc7 {[%clk
0:01:58]} 14... Re8 {[%clk 0:01:51.9]} 15. Nc4 {[%clk 0:01:53.3]} 15... Nd5
{[%clk 0:01:37]} 16. exd5 {[%clk 0:01:08.5]} 16... Rxe2 {[%clk 0:01:37.9]} 17.
Nd6 {[%clk 0:01:08.9]} 17... Rxa2 {[%clk 0:01:36.9]} 18. Bc1 {[%clk 0:01:09.1]}
18... Ba6 {[%clk 0:01:22.2]} 19. Rxd7 {[%clk 0:01:08.8]} 19... Bxd3 {[%clk
0:01:23.1]} 20. Re1 {[%clk 0:01:08.9]} 20... Be2 {[%clk 0:01:19.8]} 21. Nxf7
{[%clk 0:00:30.7]} 21... d3 {[%clk 0:01:17.1]} 22. Nh6+ {[%clk 0:00:28.8]} 22...
Kh8 {[%clk 0:00:55.9]} 23. Ng5 {[%clk 0:00:25.7]} 23... Rf8 {[%clk 0:00:39.9]}
24. Ngf7+ {[%clk 0:00:20]} 24... Rxf7 {[%clk 0:00:40.4]} 25. Nxf7+ {[%clk
0:00:20.9]} 25... Kg8 {[%clk 0:00:41.3]} 26. Nh6+ {[%clk 0:00:21.3]} 26... Bxh6
{[%clk 0:00:34.5]} 27. Bxh6 {[%clk 0:00:22.2]} 27... d2 {[%clk 0:00:35.4]} 28.
Bxd2 {[%clk 0:00:17.5]} 28... Rxd2 {[%clk 0:00:36.3]} 29. d6 {[%clk 0:00:17.3]}
29... Kf8 {[%clk 0:00:33.9]} 30. Rxa7 {[%clk 0:00:14.3]} 30... Rxd6 {[%clk
0:00:33.1]} 31. Rxh7 {[%clk 0:00:12.8]} 31... Rd3 {[%clk 0:00:32.2]} 32. Rh3
{[%clk 0:00:10.9]} 32... Rd2 {[%clk 0:00:31.1]} 33. Re3 {[%clk 0:00:09.8]} 33...
Bg4 {[%clk 0:00:30.9]} 34. h3 {[%clk 0:00:10]} 34... Bf5 {[%clk 0:00:30.6]} 35.
Rf3 {[%clk 0:00:09.4]} 35... Kg7 {[%clk 0:00:30.5]} 36. Kh2 {[%clk 0:00:09.4]}
36... Rb2 {[%clk 0:00:30.2]} 37. Kg3 {[%clk 0:00:09.5]} 37... b5 {[%clk
0:00:29.5]} 38. Ree3 {[%clk 0:00:10]} 38... b4 {[%clk 0:00:28.3]} 39. Rf4 {[%clk
0:00:10.4]} 1-0